[Event "32nd Panamerican Youth 2022"]
[Site "Montevideo"]
[Date "2022.07.01"]
[Round "8.22"]
[White "Bravo Mallco, Kate Azumi"]
[Black "Jimenez Salas, Maria Teresa"]
[Result "1-0"]
[ECO "B62"]
[WhiteElo "1958"]
[BlackElo "1750"]
[Annotator "RC"]
[PlyCount "91"]
[EventDate "2022.06.26"]
[EventType "swiss"]
[EventCountry "URU"]
[SourceTitle "playchess.com"]
[Source "ChessBase"]
[SourceQuality "1"]
[TimeControl "5400+30"]

1. e4 {[%emt 0:00:32]} c5 {[%emt 0:00:49]} 2. Nf3 {[%emt 0:00:26]} Nc6 {[%emt 0:00:42]} 3. d4 {[%emt 0:00:30]} cxd4 {[%emt 0:00:30]} 4. Nxd4 {[%emt 0:00:30]} Nf6 {[%emt 0:00:30]} 5. Nc3 {[%emt 0:00:30]} d6 {[%emt 0:00:30]} 6. Bg5 {[%emt 0:00:30]} e6 {[%emt 0:00:30]} 7. Qd3 {[%emt 0:00:30]} a6 {[%emt 0:00:30]} 8. Nxc6 {[%emt 0:00:30]} bxc6 {[%emt 0:00:30]} 9. O-O-O {[%emt 0:00:30]} Be7 {[%emt 0:00:30]} 10. e5 {[%emt 0:12:00]} Nd5 {[%emt 0:19:08]} 11. Bxe7 {[%emt 0:12:10]} Qxe7 {[%emt 0:00:12]} 12. Qg3 {[%emt 0:03:42]} dxe5 {[%emt 0:06:44]} 13. Qxe5 {[%emt 0:01:36]} Nxc3 {[%emt 0:03:11]} 14. Qxc3 {[%emt 0:00:35]} O-O {[%emt 0:00:54]} 15. Qxc6 {[%emt 0:30:08]} Bb7 {[%emt 0:01:47]} 16. Qd7 {[%emt 0:01:11]} Qg5+ {[%emt 0:01:45]} 17. Qd2 Qf6 {[%emt 0:02:25]} 18. f3 {[%emt 0:09:00]} Rab8 19. c3 Rfd8 {[%emt 0:22:14]} 20. Bd3 {[%emt 0:00:35]} Bd5 {[%emt 0:12:01]} 21. Kb1 {[%emt 0:02:29]} Bc4 22. Qc2 Bxd3 {[%emt 0:08:43]} 23. Rxd3 {[%emt 0:00:32]} Rxd3 {[%emt 0:03:06]} 24. Qxd3 {[%emt 0:00:01]} Rd8 25. Qc2 {[%emt 0:00:12]} h6 {[%emt 0:01:52]} 26. Rd1 {[%emt 0:02:58]} Rxd1+ {[%emt 0:00:02]} 27. Qxd1 {[%emt 0:00:01]} Qh4 {[%emt 0:00:01]} 28. Qe2 {[%emt 0:11:04]} Qxh2 {[%emt 0:00:46]} 29. b4 {[%emt 0:00:02]} Qd6 {[%emt 0:01:14]} 30. Kc2 {[%emt 0:03:18]} Qc6 {[%emt 0:02:52]} 31. Kb3 {[%emt 0:00:19]} f5 {[%emt 0:02:22]} 32. a4 {[%emt 0:01:50]} Kf7 {[%emt 0:01:19]} 33. Qe5 {[%emt 0:00:05]} Qd7 {[%emt 0:01:24]} 34. Qe2 {[%emt 0:00:39]} Qc6 {[%emt 0:01:32]} 35. Qd3 {[%emt 0:00:05]} g5 {[%emt 0:01:51]} 36. b5 {[%emt 0:00:00]} axb5 {[%emt 0:01:08]} 37. axb5 {[%emt 0:00:11]} Qb7 38. c4 h5 {[%emt 0:02:13]} 39. c5 {[%emt 0:01:31]} g4 {[%emt 0:01:03]} 40. b6 {[%emt 0:03:56]} gxf3 {[%emt 0:00:32]} 41. Qxf3 {[%emt 0:00:01]} Qa6 {[%emt 0:00:35]} 42. Qxh5+ {[%emt 0:00:18]} Ke7 {[%emt 0:00:19]} 43. Qh7+ {[%emt 0:00:36]} Kd8 {[%emt 0:00:29]} 44. Qc7+ {[%emt 0:00:21]} Ke8 {[%emt 0:00:01]} 45. Qb8+ {[%emt 0:00:03]} Kd7 {[%emt 0:00:23]} 46. Qa7+ {[%emt 0:00:18]} 1-0

[Event "32nd Panamerican Youth 2022"]
[Site "Montevideo"]
[Date "2022.07.01"]
[Round "8.23"]
[White "Hernandez Diaz, Paula Sofia"]
[Black "Contreras Huaman, Fiorella"]
[Result "0-1"]
[ECO "A06"]
[WhiteElo "1751"]
[BlackElo "1924"]
[Annotator "RC"]
[PlyCount "64"]
[EventDate "2022.06.26"]
[EventType "swiss"]
[EventCountry "URU"]
[SourceTitle "playchess.com"]
[Source "ChessBase"]
[SourceQuality "1"]
[TimeControl "5400+30"]

1. Nf3 d5 {[%emt 0:00:48]} 2. c4 {[%emt 0:00:11]} c6 {[%emt 0:00:37]} 3. e3 {[%emt 0:00:18]} Nf6 {[%emt 0:05:00]} 4. Nc3 {[%emt 0:02:33]} e6 {[%emt 0:02:48]} 5. b3 {[%emt 0:00:57]} Nbd7 {[%emt 0:02:40]} 6. Bb2 {[%emt 0:00:36]} Bd6 {[%emt 0:08:01]} 7. Qc2 {[%emt 0:01:53]} Qe7 {[%emt 0:10:47]} 8. Rg1 {[%emt 0:06:43]} dxc4 {[%emt 0:15:22]} 9. Bxc4 {[%emt 0:03:01]} b5 {[%emt 0:02:24]} 10. Be2 {[%emt 0:01:44]} Bb7 {[%emt 0:05:08]} 11. g4 {[%emt 0:04:54]} b4 {[%emt 0:22:03]} 12. Ne4 {[%emt 0:08:59]} Nxe4 {[%emt 0:01:00]} 13. Qxe4 {[%emt 0:00:07]} e5 {[%emt 0:00:50]} 14. h4 {[%emt 0:06:47]} O-O-O {[%emt 0:01:55]} 15. Rc1 {[%emt 0:07:04]} Kb8 {[%emt 0:00:58]} 16. Qc2 {[%emt 0:02:46]} c5 {[%emt 0:02:45]} 17. d3 {[%emt 0:06:25]} e4 {[%emt 0:00:30]} 18. dxe4 {[%emt 0:00:30]} Bxe4 {[%emt 0:01:46]} 19. Qc4 {[%emt 0:06:51]} Nb6 {[%emt 0:00:46]} 20. Qb5 {[%emt 0:01:55]} f6 {[%emt 0:06:41]} 21. a4 {[%emt 0:07:26]} Qb7 {[%emt 0:03:05]} 22. Nd2 {[%emt 0:00:56]} Bc6 {[%emt 0:00:12]} 23. Qa5 {[%emt 0:01:01]} Qd7 {[%emt 0:02:21]} 24. Rd1 {[%emt 0:01:06]} Qe7 {[%emt 0:01:05]} 25. Qa6 {[%emt 0:01:52]} Bh2 {[%emt 0:01:10]} 26. Rf1 {[%emt 0:00:25]} Bb7 {[%emt 0:00:52]} 27. Qb5 {[%emt 0:00:32]} Nd5 {[%emt 0:00:12]} 28. e4 {[%emt 0:09:29]} Nc3 {[%emt 0:00:25]} 29. Bxc3 {[%emt 0:01:39]} bxc3 {[%emt 0:00:02]} 30. Nc4 {[%emt 0:00:30]} Qxe4 {[%emt 0:00:45]} 31. Qxc5 {[%emt 0:02:08]} Rxd1+ {[%emt 0:00:15]} 32. Kxd1 {[%emt 0:00:35]} Qb1# {[%emt 0:00:04]} 0-1

[Event "32nd Panamerican Youth 2022"]
[Site "Montevideo"]
[Date "2022.07.01"]
[Round "8.24"]
[White "Gonzalez Romo, Greshya Jocelyn"]
[Black "Montiel Caceres, Helen"]
[Result "0-1"]
[ECO "B40"]
[WhiteElo "1483"]
[BlackElo "1763"]
[Annotator "NA RC"]
[PlyCount "60"]
[EventDate "2022.06.26"]
[EventType "swiss"]
[EventCountry "URU"]
[SourceTitle "playchess.com"]
[Source "ChessBase"]
[SourceQuality "1"]
[TimeControl "5400+30"]

1. e4 c5 2. Nf3 e6 3. c4 Nc6 4. d4 cxd4 5. Nxd4 Nf6 6. Nc3 Bb4 7. Nxc6 bxc6 8. Bd3 e5 9. O-O O-O 10. Qe2 a5 {[%emt 0:03:48]} 11. Na4 {[%emt 0:16:49]} h6 {[%emt 0:06:33]} 12. Be3 {[%emt 0:14:21]} Bd6 {[%emt 0:00:31]} 13. Nb6 {[%emt 0:05:23]} Rb8 {[%emt 0:00:09]} 14. Na4 {[%emt 0:08:46]} Bc7 {[%emt 0:00:23]} 15. c5 {[%emt 0:06:09]} Rb4 {[%emt 0:01:13]} 16. Qc2 {[%emt 0:03:13]} d5 {[%emt 0:04:46]} 17. cxd6 {[%emt 0:00:44]} Bxd6 {[%emt 0:00:15]} 18. b3 {[%emt 0:05:39]} Qe7 {[%emt 0:02:42]} 19. Bd2 {[%emt 0:02:05]} Rb8 {[%emt 0:01:39]} 20. Bxa5 {[%emt 0:01:16]} Be6 {[%emt 0:00:23]} 21. Kh1 {[%emt 0:02:57]} Nh5 {[%emt 0:05:21]} 22. Rfd1 {[%emt 0:08:14]} Nf4 {[%emt 0:03:32]} 23. Bf1 {[%emt 0:01:34]} Bb4 {[%emt 0:00:42]} 24. Bxb4 {[%emt 0:02:38]} Qxb4 {[%emt 0:00:17]} 25. Nc5 {[%emt 0:00:52]} Rbd8 {[%emt 0:01:07]} 26. g3 {[%emt 0:02:13]} Rxd1 {[%emt 0:00:23]} 27. Rxd1 {[%emt 0:00:11]} Bg4 {[%emt 0:00:05]} 28. Rc1 {[%emt 0:01:38]} Nh3 {[%emt 0:04:13]} 29. Nd3 {[%emt 0:02:41]} Qxe4+ {[%emt 0:00:14]} 30. Bg2 {[%emt 0:00:55]} Qxd3 {[%emt 0:00:19]} 0-1

[Event "32nd Panamerican Youth 2022"]
[Site "Montevideo"]
[Date "2022.07.01"]
[Round "8.25"]
[White "Toro, Miguel Angel"]
[Black "Flores Quillas, Diego Saul Rodri"]
[Result "0-1"]
[ECO "B68"]
[WhiteElo "2026"]
[BlackElo "2172"]
[Annotator "RC"]
[PlyCount "64"]
[EventDate "2022.06.26"]
[EventType "swiss"]
[EventCountry "URU"]
[SourceTitle "playchess.com"]
[Source "ChessBase"]
[SourceQuality "1"]
[TimeControl "5400+30"]

1. e4 c5 2. Nf3 d6 3. d4 cxd4 4. Nxd4 Nf6 5. Nc3 Nc6 6. Bg5 e6 7. Qd2 a6 8. O-O-O Bd7 9. f4 Be7 10. Nxc6 Bxc6 11. Qe1 Qc7 12. Kb1 b5 13. Bxf6 gxf6 14. Bd3 Qb6 15. f5 Kd7 16. Ne2 Qc5 17. Ng3 h5 18. h4 Rag8 19. Rh3 Qe5 20. Qf2 Kc7 21. a4 Kb7 22. axb5 axb5 23. Ne2 Qc5 24. Nd4 e5 25. Bxb5 Bxb5 26. Rb3 exd4 27. Rxd4 Rb8 28. Qd2 Ka7 29. Rc3 Qb6 30. Rb4 Rb7 31. Rcb3 Qc5 32. Ra3+ Kb8 0-1

[Event "32nd Panamerican Youth 2022"]
[Site "Montevideo"]
[Date "2022.07.01"]
[Round "8.26"]
[White "Vasquez Vargas, Henry Richard"]
[Black "Reyes Zavaleta, Fabian Ricardo"]
[Result "1-0"]
[ECO "D55"]
[WhiteElo "2067"]
[BlackElo "2055"]
[Annotator "RC"]
[PlyCount "79"]
[EventDate "2022.06.26"]
[EventType "swiss"]
[EventCountry "URU"]
[SourceTitle "playchess.com"]
[Source "ChessBase"]
[SourceQuality "1"]
[TimeControl "5400+30"]

1. d4 {[%emt 0:01:49]} d5 {[%emt 0:00:13]} 2. c4 {[%emt 0:00:07]} e6 {[%emt 0:00:10]} 3. Nf3 {[%emt 0:00:18]} Nf6 {[%emt 0:00:11]} 4. Nc3 {[%emt 0:00:40]} Be7 {[%emt 0:00:10]} 5. Bg5 {[%emt 0:05:28]} O-O {[%emt 0:00:09]} 6. e3 {[%emt 0:00:39]} Ne4 {[%emt 0:00:06]} 7. Bxe7 {[%emt 0:02:40]} Qxe7 {[%emt 0:00:01]} 8. Nxe4 {[%emt 0:01:47]} dxe4 {[%emt 0:00:07]} 9. Nd2 {[%emt 0:00:10]} f5 {[%emt 0:00:07]} 10. Qc2 {[%emt 0:03:30]} c5 {[%emt 0:08:12]} 11. dxc5 {[%emt 0:02:40]} Qxc5 {[%emt 0:00:43]} 12. O-O-O {[%emt 0:00:54]} Nc6 {[%emt 0:01:50]} 13. Nb3 {[%emt 0:01:17]} Qe7 {[%emt 0:00:26]} 14. c5 {[%emt 0:03:56]} Bd7 {[%emt 0:36:27]} 15. Qc3 {[%emt 0:07:24]} Rfd8 {[%emt 0:05:35]} 16. Bc4 {[%emt 0:05:18]} Be8 {[%emt 0:07:43]} 17. Nd4 {[%emt 0:09:38]} Nxd4 {[%emt 0:01:55]} 18. Rxd4 {[%emt 0:00:04]} Rxd4 {[%emt 0:01:02]} 19. Qxd4 {[%emt 0:06:24]} Rc8 {[%emt 0:00:35]} 20. b4 {[%emt 0:01:07]} b6 {[%emt 0:02:52]} 21. Qe5 {[%emt 0:05:51]} Bf7 {[%emt 0:06:02]} 22. Rd1 {[%emt 0:00:06]} bxc5 {[%emt 0:01:35]} 23. b5 {[%emt 0:00:05]} g6 {[%emt 0:04:02]} 24. a4 {[%emt 0:02:56]} Rd8 {[%emt 0:02:08]} 25. Rxd8+ {[%emt 0:09:18]} Qxd8 {[%emt 0:00:01]} 26. Qxc5 {[%emt 0:01:05]} Qa5 {[%emt 0:00:19]} 27. Bb3 {[%emt 0:02:01]} e5 {[%emt 0:10:24]} 28. Bd1 {[%emt 0:01:42]} Qe1 {[%emt 0:02:52]} 29. Qc2 {[%emt 0:00:11]} Qb4 {[%emt 0:00:46]} 30. Qb2 {[%emt 0:01:33]} Qc4+ {[%emt 0:01:13]} 31. Kd2 {[%emt 0:05:13]} Qf1 {[%emt 0:02:07]} 32. Be2 {[%emt 0:02:57]} Qxf2 {[%emt 0:00:30]} 33. Qxe5 {[%emt 0:01:00]} g5 {[%emt 0:01:31]} 34. g4 {[%emt 0:02:03]} Qg1 {[%emt 0:01:30]} 35. Qxf5 {[%emt 0:01:43]} Qb1 {[%emt 0:00:30]} 36. Qxg5+ {[%emt 0:00:08]} Kf8 {[%emt 0:00:04]} 37. Qc5+ {[%emt 0:00:32]} Ke8 {[%emt 0:01:14]} 38. Qd4 {[%emt 0:02:08]} Kf8 {[%emt 0:02:52]} 39. Bd1 {[%emt 0:00:37]} Qa2+ {[%emt 0:00:20]} 40. Bc2 1-0

[Event "32nd Panamerican Youth 2022"]
[Site "Montevideo"]
[Date "2022.07.01"]
[Round "8.27"]
[White "Lavandeira, Juan Bautista"]
[Black "Arias Diaz, Miguel Angel"]
[Result "1/2-1/2"]
[ECO "D80"]
[WhiteElo "1762"]
[BlackElo "1848"]
[Annotator "NA RC"]
[PlyCount "34"]
[EventDate "2022.06.26"]
[EventType "swiss"]
[EventCountry "URU"]
[SourceTitle "playchess.com"]
[Source "ChessBase"]
[SourceQuality "1"]
[TimeControl "5400+30"]

{[%evp 16,32,0,-3,32767,32767,-15,-21,14,32767,-11,32767,32767,-18,-24,32767,-16,-39,-16]} 1. d4 {[%emt 0:00:04]} Nf6 {[%emt 0:00:04]} 2. c4 {[%emt 0:00:05]} g6 {[%emt 0:00:03]} 3. Nc3 {[%emt 0:00:05]} d5 {[%emt 0:00:03]} 4. e3 {[%emt 0:00:10]} Bg7 {[%emt 0:01:33]} 5. Qb3 {[%emt 0:00:36]} dxc4 {[%emt 0:18:24]} 6. Bxc4 {[%emt 0:00:08]} O-O {[%emt 0:00:18]} 7. Nf3 {[%emt 0:02:25]} c5 {[%emt 0:06:08]} 8. Ne5 {[%emt 0:18:20]} e6 {[%emt 0:05:15]} ({But not} 8... cxd4 9. Nxf7 Qa5 10. exd4 $16) 9. O-O {[%emt 0:12:28]} a6 {[%emt 0:07:59]} 10. a4 {[%emt 0:05:52]} Qc7 {[%emt 0:04:33]} 11. Rd1 {[%emt 0:19:10]} Nbd7 {[%emt 0:03:49]} 12. Nxd7 {[%emt 0:03:29]} Bxd7 {[%emt 0:01:08]} 13. d5 {[%emt 0:04:49]} exd5 {[%emt 0:00:54]} 14. Nxd5 {[%emt 0:00:20]} Nxd5 {[%emt 0:00:16]} 15. Bxd5 {[%emt 0:00:35]} Bc6 {[%emt 0:15:09]} 16. e4 {[%emt 0:01:42]} Rad8 $11 {[%emt 0:07:00]} 17. Bg5 {[%emt 0:10:00]} Rd7 {[%emt 0:03:55]} 1/2-1/2

[Event "32nd Panamerican Youth 2022"]
[Site "Montevideo"]
[Date "2022.07.01"]
[Round "8.28"]
[White "Fiorito, Joaquin"]
[Black "Mayta Aiza, Maveric"]
[Result "1-0"]
[ECO "B64"]
[WhiteElo "2310"]
[BlackElo "1981"]
[Annotator "TA"]
[PlyCount "67"]
[EventDate "2022.06.26"]
[EventType "swiss"]
[EventCountry "URU"]
[SourceTitle "playchess.com"]
[Source "ChessBase"]
[SourceQuality "1"]
[TimeControl "5400+30"]

{[%evp 20,66,35,39,62,24,37,25,56,35,200,194,181,103,321,293,352,206,395,200,210,184,318,146,122,122,199,183,229,235,334,329,463,460,837,827,1300,1315,29990,29991,29993,29994,29994,29995,29995,29996,29998,29999,29999]} 1. e4 c5 2. Nf3 Nc6 3. d4 cxd4 4. Nxd4 Nf6 5. Nc3 d6 6. Bg5 e6 7. Qd2 Be7 {[%emt 1:34:00]} 8. O-O-O O-O 9. f4 h6 10. h4 Nxd4 11. Qxd4 {[%cal Oc1b1]} Qa5 {[#] B65: Sicilian: Richter-Rauzer: 7...Be7 8 0-0-0 0-0 9 f4 Nxd4.} (11... hxg5 12. hxg5 Ng4 13. e5 dxe5 14. Qe4 $15) 12. Qe3 $1 {[%cal Oc1b1] White is more active.} Rd8 {[%emt 0:02:30] [#]} (12... hxg5 $2 13. hxg5 Ng4 14. Qh3 $18) 13. Kb1 $1 {[%cal Of1d3]} Kf8 {[%emt 0:00:30] [#] White has an edge.} (13... hxg5 $2 14. hxg5 g6 15. Qh3 $18 (15. gxf6 Bxf6 16. Nb5 Qb6 $16)) (13... Bd7 14. Qg3) 14. g4 $146 {[%cal Of1b5]} ({Predecessor:} 14. Bd3 Bd7 15. e5 dxe5 16. fxe5 Ng4 17. Bxe7+ Kxe7 18. Qg3 Nxe5 19. Qxg7 Rg8 20. Qxh6 Nxd3 21. Rxd3 {1-0 (31) Iljiushenok,I (2516)-Gutenev,A (2474) Sochi 2018}) 14... b5 $2 {[%emt 0:00:30]} (14... hxg5 15. hxg5 Ng8 16. Rh8 $16) (14... Bd7 $14) 15. Bxf6 $18 {[%emt 0:28:47]} (15. Bxb5 Bb7 $15) 15... Bxf6 {[%emt 0:00:00]} 16. Ne2 {[%emt 0:00:16]} (16. Nxb5 $6 a6 17. Nd4 (17. Nxd6 Bxb2 18. Kxb2 Rxd6 $16) 17... e5 $16) ({Better is} 16. e5 $18 b4 17. Bg2 (17. exf6 bxc3 18. fxg7+ Kxg7 $18) 17... bxc3 18. Bxa8 dxe5 19. Rxd8+ (19. Qxc3 Rxd1+ 20. Rxd1 Qxc3 $15) 19... Bxd8 20. Qxe5) 16... h5 $2 {[%emt 0:00:00]} (16... Qb4 $16 {was worth a try.} 17. c3 Qc5) 17. g5 {[%emt 0:00:47]} (17. gxh5 Bb7 $14) 17... Be7 {[%emt 0:00:00]} 18. g6 {[%emt 0:00:11]} (18. f5 $142) 18... Bf6 $2 {[%emt 0:00:00]} (18... Qb6 19. Qg3 Bb7) 19. Bg2 {[%emt 0:04:42]} (19. e5 $142 Bb7 20. exf6 $1) 19... Bb7 {[%emt 0:00:00]} 20. gxf7 {[%emt 0:01:24][%cal Oe4e5] Threatens to win with e5!} Rac8 {[%emt 0:00:00] [#]} (20... Qb6 $142 21. Qb3 (21. Qxb6 axb6 22. Nd4 Bxd4 $11) 21... Rac8) 21. Nd4 {[%emt 0:01:11]} (21. e5 $1 $18 {[%cal Re5f6]} Bxg2 22. exf6 Bxh1 23. Qxe6 (23. Rxh1 gxf6 24. Qe4 e5 $16) 23... gxf6 24. Qxf6 (24. Rxh1 Qc7 $11) (24. Rg1 Bg2 $16)) 21... Bxd4 $16 {[%emt 0:00:00]} 22. Rxd4 {[%emt 0:00:17] Bh3 is the strong threat. Dancing on a razor blade.} Qc7 {[%emt 0:00:00]} (22... Rc4 $16 {was necessary.}) 23. Rd2 {[%emt 0:02:12] And now Bh3 would win.} Qxf7 {[%emt 0:00:00]} (23... Qc5 $142 24. Qe2 (24. Qxc5 dxc5 25. Kc1 Kxf7 $14) 24... Rc7) 24. Rhd1 $18 {[%emt 0:00:29]} Rc6 {[%emt 0:00:00]} (24... Qe7 $142 25. Qxa7 Kg8) 25. e5 {[%emt 0:04:36]} ({Less strong is} 25. Qxa7 Ra6 26. Qf2 Kg8 $16) 25... d5 {[%emt 0:00:00]} (25... Rb6 $142 26. Bxb7 Rxb7 27. Rxd6 (27. exd6 Rbd7 $18) 27... Re8) 26. f5 {[%emt 0:01:31][%cal Bf4f5,Bf5f6][%mdl 32]} Kg8 {[%emt 0:00:00]} (26... Rb6 $142 27. Qg5 Rd7) 27. Qg5 {[%emt 0:03:10]} Re8 {[%emt 0:00:00]} 28. f6 {[%emt 0:00:39]} g6 {[%emt 0:00:00] [#]} 29. Be4 $1 {[%emt 0:00:52][%mdl 512] White mates.} dxe4 {[%emt 0:00:00]} (29... Rc4 30. Bxg6) 30. Rd7 {[%emt 0:00:11]} Rc7 {[%emt 0:00:00]} 31. Rxf7 {[%emt 0:00:13]} Kxf7 {[%emt 0:00:00]} 32. Qh6 {[%emt 0:00:11][%csl Gf6][%cal Rh6g7]} Rec8 {[%emt 0:00:00]} 33. Qg7+ {[%emt 0:00:08]} Ke8 {[%emt 0:00:00]} 34. Qg8# {[%emt 0:00:04] Weighted Error Value: White=0.35/Black=0.89} 1-0

[Event "32nd Panamerican Youth 2022"]
[Site "Montevideo"]
[Date "2022.07.01"]
[Round "8.29"]
[White "Sanchez Tobar, Francisca Valenti"]
[Black "Borda Rodas, Anapaola S."]
[Result "0-1"]
[ECO "C47"]
[WhiteElo "1839"]
[BlackElo "2183"]
[Annotator "RC"]
[PlyCount "102"]
[EventDate "2022.06.26"]
[EventType "swiss"]
[EventCountry "URU"]
[SourceTitle "playchess.com"]
[Source "ChessBase"]
[SourceQuality "1"]
[TimeControl "5400+30"]

1. e4 {[%emt 0:00:07]} e5 {[%emt 0:00:23]} 2. Nf3 {[%emt 0:00:26]} Nc6 {[%emt 0:00:20]} 3. Nc3 {[%emt 0:00:46]} Nf6 {[%emt 0:00:22]} 4. d4 {[%emt 0:00:52]} exd4 {[%emt 0:00:17]} 5. Nxd4 {[%emt 0:00:07]} Nxe4 {[%emt 0:00:07]} 6. Nxe4 {[%emt 0:03:55]} Qe7 {[%emt 0:00:24]} 7. f3 {[%emt 0:00:21]} d5 {[%emt 0:00:06]} 8. Nxc6 {[%emt 0:00:12]} bxc6 {[%emt 0:00:04]} 9. Qe2 {[%emt 0:00:35]} dxe4 {[%emt 0:00:33]} 10. Qxe4 {[%emt 0:00:41]} Qxe4+ {[%emt 0:01:12]} 11. fxe4 {[%emt 0:03:54]} Bd6 {[%emt 0:00:35]} 12. Bc4 {[%emt 0:05:36]} Ke7 {[%emt 0:05:18]} 13. Be3 {[%emt 0:02:19]} Be6 {[%emt 0:03:36]} 14. Bd3 {[%emt 0:01:47]} Rhd8 {[%emt 0:03:54]} 15. Kf2 {[%emt 0:07:40]} Be5 {[%emt 0:05:58]} 16. Rhb1 {[%emt 0:08:14]} Kf6 {[%emt 0:14:35]} 17. Be2 {[%emt 0:12:09]} a5 {[%emt 0:07:48]} 18. a4 {[%emt 0:13:31]} Rab8 {[%emt 0:04:11]} 19. c3 {[%emt 0:02:50]} Rb3 {[%emt 0:11:52]} 20. Bd1 {[%emt 0:11:13]} Rb7 {[%emt 0:01:24]} 21. Bc2 {[%emt 0:04:56]} Rdb8 {[%emt 0:02:47]} 22. Bc1 {[%emt 0:02:42]} Bb3 {[%emt 0:01:35]} 23. Bd3 {[%emt 0:03:59]} c5 {[%emt 0:03:19]} 24. c4 {[%emt 0:05:55]} Rb4 {[%emt 0:03:58]} 25. Bd2 {[%emt 0:00:59]} Rxa4 {[%emt 0:00:29]} 26. Rxa4 {[%emt 0:01:28]} Bxa4 {[%emt 0:01:19]} 27. Bxa5 {[%emt 0:01:02]} Bb3 {[%emt 0:02:50]} 28. Bc3 {[%emt 0:01:09]} Ba2 {[%emt 0:01:52]} 29. Rc1 {[%emt 0:00:29]} Bxc3 {[%emt 0:00:11]} 30. bxc3 {[%emt 0:00:16]} Rb2+ {[%emt 0:00:04]} 31. Kf3 {[%emt 0:00:34]} Ke5 {[%emt 0:02:14]} 32. Rd1 {[%emt 0:01:50]} Bb3 {[%emt 0:01:20]} 33. Rc1 {[%emt 0:00:24]} Rd2 {[%emt 0:00:39]} 34. Be2 {[%emt 0:00:25]} Rc2 {[%emt 0:00:09]} 35. Rxc2 {[%emt 0:02:33]} Bxc2 {[%emt 0:00:05]} 36. Ke3 {[%emt 0:00:07]} Bxe4 {[%emt 0:00:07]} 37. g3 {[%emt 0:00:02]} f5 {[%emt 0:00:31]} 38. Bf1 {[%emt 0:02:22]} g5 {[%emt 0:00:07]} 39. Be2 {[%emt 0:00:30]} f4+ {[%emt 0:02:38]} 40. Kf2 {[%emt 0:00:59]} Bf5 {[%emt 0:00:54]} 41. Bh5 {[%emt 0:00:30]} g4 {[%emt 0:03:18]} 42. gxf4+ {[%emt 0:00:27]} Kxf4 {[%emt 0:00:05]} 43. Bf7 {[%emt 0:00:06]} Bd3 {[%emt 0:00:47]} 44. Bd5 {[%emt 0:00:20]} h5 {[%emt 0:00:09]} 45. Bf7 {[%emt 0:00:43]} h4 {[%emt 0:00:05]} 46. Bd5 {[%emt 0:00:21]} Be4 {[%emt 0:00:09]} 47. Be6 {[%emt 0:00:22]} g3+ {[%emt 0:00:18]} 48. hxg3+ {[%emt 0:01:07]} hxg3+ {[%emt 0:00:06]} 49. Kg1 {[%emt 0:00:04]} Ke3 {[%emt 0:00:05]} 50. Bd5 {[%emt 0:00:19]} Bxd5 {[%emt 0:00:26]} 51. cxd5 {[%emt 0:00:02]} c4 {[%emt 0:00:08]} 0-1

[Event "32nd Panamerican Youth 2022"]
[Site "Montevideo"]
[Date "2022.07.01"]
[Round "8.30"]
[White "Garcia Andrada, Heidy Nicole"]
[Black "Ibarra Mayorga, Ximena"]
[Result "1/2-1/2"]
[ECO "A01"]
[WhiteElo "1968"]
[BlackElo "1686"]
[Annotator "RC"]
[PlyCount "132"]
[EventDate "2022.06.26"]
[EventType "swiss"]
[EventCountry "URU"]
[SourceTitle "playchess.com"]
[Source "ChessBase"]
[SourceQuality "1"]
[TimeControl "5400+30"]

1. b3 {[%emt 0:00:03]} Nf6 {[%emt 0:02:34]} 2. Bb2 {[%emt 0:00:07]} d6 {[%emt 0:00:41]} 3. e3 {[%emt 0:00:24]} g6 {[%emt 0:03:55]} 4. e4 {[%emt 0:09:51]} Bg7 {[%emt 0:09:45]} 5. g3 {[%emt 0:00:07]} O-O {[%emt 0:01:58]} 6. Bg2 {[%emt 0:00:04]} e5 {[%emt 0:03:48]} 7. Ne2 {[%emt 0:00:13]} Nc6 {[%emt 0:05:48]} 8. O-O {[%emt 0:05:51]} Ne8 {[%emt 0:25:01]} 9. d4 {[%emt 0:00:30]} exd4 {[%emt 0:00:30]} 10. Nxd4 {[%emt 0:00:12]} Nxd4 {[%emt 0:00:26]} 11. Bxd4 {[%emt 0:00:06]} Bxd4 {[%emt 0:00:12]} 12. Qxd4 {[%emt 0:00:06]} Qf6 {[%emt 0:00:30]} 13. Qxf6 {[%emt 0:01:55]} Nxf6 {[%emt 0:00:12]} 14. c4 {[%emt 0:00:02]} Rb8 {[%emt 0:05:21]} 15. Nc3 {[%emt 0:01:05]} a6 {[%emt 0:00:09]} 16. Rac1 {[%emt 0:02:10]} Re8 17. Nd5 {[%emt 0:15:10]} Nxd5 {[%emt 0:11:41]} 18. cxd5 f5 {[%emt 0:03:04]} 19. f3 {[%emt 0:15:29]} Re7 {[%emt 0:00:27]} 20. Rc3 {[%emt 0:01:14]} fxe4 {[%emt 0:02:32]} 21. fxe4 {[%emt 0:00:07]} b6 {[%emt 0:02:46]} 22. Rfc1 {[%emt 0:02:08]} Rb7 {[%emt 0:00:11]} 23. h3 Ra7 {[%emt 0:03:32]} 24. Kf2 {[%emt 0:12:00]} a5 {[%emt 0:00:19]} 25. Ke3 {[%emt 0:01:16]} Kf8 {[%emt 0:07:26]} 26. Kd4 {[%emt 0:00:42]} Ke8 {[%emt 0:01:21]} 27. Re3 {[%emt 0:02:40]} Kd8 {[%emt 0:04:09]} 28. e5 {[%emt 0:01:03]} Rxe5 {[%emt 0:02:00]} 29. Rxe5 {[%emt 0:00:06]} dxe5+ {[%emt 0:00:02]} 30. Kxe5 {[%emt 0:00:02]} Ke7 {[%emt 0:00:01]} 31. Rxc7+ {[%emt 0:02:34]} Rxc7 {[%emt 0:00:21]} 32. d6+ {[%emt 0:00:05]} Kd7 {[%emt 0:01:28]} 33. dxc7 {[%emt 0:00:07]} Kxc7 {[%emt 0:03:32]} 34. Kf6 {[%emt 0:04:45]} Kd6 {[%emt 0:00:31]} 35. Kg7 {[%emt 0:00:40]} Ke5 {[%emt 0:00:27]} 36. Kxh7 {[%emt 0:00:38]} Kf6 {[%emt 0:00:49]} 37. h4 {[%emt 0:03:29]} Bg4 {[%emt 0:00:48]} 38. Be4 {[%emt 0:00:50]} g5 {[%emt 0:00:29]} 39. Kg8 {[%emt 0:13:27]} gxh4 {[%emt 0:00:32]} 40. gxh4 {[%emt 0:00:01]} Bh5 {[%emt 0:00:26]} 41. Bd5 {[%emt 0:04:24]} Bg6 {[%emt 0:00:22]} 42. Bf3 {[%emt 0:00:33]} Bb1 {[%emt 0:00:33]} 43. a4 Bc2 {[%emt 0:00:16]} 44. Bd5 {[%emt 0:01:30]} Bg6 {[%emt 0:00:12]} 45. Kf8 {[%emt 0:01:05]} Bh5 {[%emt 0:00:39]} 46. Bc4 {[%emt 0:01:06]} Bg6 {[%emt 0:00:49]} 47. Bb5 {[%emt 0:01:50]} Bf7 {[%emt 0:00:17]} 48. Bc4 {[%emt 0:00:17]} Bh5 {[%emt 0:00:38]} 49. Bd3 {[%emt 0:00:48]} Bf7 {[%emt 0:00:10]} 50. Bc2 {[%emt 0:00:08]} Bh5 {[%emt 0:00:27]} 51. Kg8 {[%emt 0:00:21]} Bf7+ {[%emt 0:00:28]} 52. Kh7 {[%emt 0:00:56]} Bh5 {[%emt 0:00:11]} 53. Kh6 {[%emt 0:00:31]} Bf7 {[%emt 0:01:00]} 54. h5 {[%emt 0:00:43]} Be6 {[%emt 0:00:45]} 55. Kh7 {[%emt 0:00:31]} Bf7 {[%emt 0:00:24]} 56. h6 {[%emt 0:00:35]} Be6 {[%emt 0:00:16]} 57. Kh8 {[%emt 0:00:16]} Bf7 {[%emt 0:00:33]} 58. Bd1 {[%emt 0:00:42]} Be6 {[%emt 0:00:18]} 59. Bc2 {[%emt 0:01:39]} Bf7 {[%emt 0:00:14]} 60. Kh7 {[%emt 0:00:24]} Be6 {[%emt 0:00:09]} 61. Kh8 {[%emt 0:00:11]} Bf7 {[%emt 0:00:11]} 62. Bd1 {[%emt 0:00:41]} Be6 {[%emt 0:00:05]} 63. h7 {[%emt 0:00:44]} Bf7 {[%emt 0:01:24]} 64. Bh5 {[%emt 0:00:23]} Bxb3 {[%emt 0:00:31]} 65. Be8 {[%emt 0:00:07]} Be6 {[%emt 0:00:50]} 66. Bb5 {[%emt 0:00:08]} Bf7 {[%emt 0:00:35]} 1/2-1/2